Workbook

Sheet Sines
D1: Approximating the Sine Function
B3: This program lets you "build" the best
D4: polynomial approximation to y = sin x
D7: based on the numbers a, b, c, …, g.
D9: Start by setting all the coefficients to 0
D10: and then adjust each coefficient in turn
D11: to get the best possible fit to the sine curve.
D12: We start with the constant coefficient a = 0.
B14: First adjust b (-10 to 10) in the linear coefficient 1/b.
E15: =F15-10 -> 1 | F15: 11
B16: Next adjust c (-10 to 10) in the quadratic coefficient 1/c.
E17: =F17-10 -> 0 | F17: 10 | L17: =" y = "&Sheet3!G13 & Sheet3!G15 & Sheet3!G17 & Sheet3!G19 & Sheet3!G21 & Sheet3!G23 -> y = 0 + (1/1)x + 0x^2 - (1/5)x^3 + 0x^4 + (1/120)x^5 + 0x^6
B18: Then adjust d (-10 to 10) in the cubic coefficient 1/d.
E19: =F19-10 -> -5 | F19: 5
B20: Then adjust e (-10 to 10) in the quartic coefficient 1/e | M20: Enter an interval from -c to +c on which to measure the accuracy
E21: =F21-10 -> 0 | F21: 10
B22: Then adjust f (-200 to 200) in the fifth degree coefficient 1/f | M22: =-P22 -> -3.4 | N22: to | O22: =P22 -> 3.4 | P22: =0.1+$Q22/10 -> 3.4 | Q22: 33
E23: =10*F23-200 -> 120 | F23: 32
B24: Finally adjust the 6th degree coefficient g (-500 to 500). | M24: The sum of the squares = | P24: =Sheet3!G27 -> 9.318848324
E25: =20*F25-500 -> 0 | F25: 25
C29: Click each item below for suggestions and investigations
D30: Item 1
D31: Item 2
D32: Item 3
D33: Item 4
D34: Item 5
A37: Created by: Sheldon P. Gordon
A38: Farmingdale StateCollege
A39: Development of this module was supported by the
A40: NSF's Division of Undergraduate Education
A41: under grants DUE-0310123 and DUE-0442160.

Sheet Cosines
C1: Approximating the Cosine Function
B3: This program lets you "build" the best
D4: polynomial approximation to y = cos x
D7: based on the numbers a, b, c, …, g.
D9: Start by setting all the coefficients to 0
D10: and then adjust each coefficient in turn
D11: to get the best possible fit to the cosine curve.
D12: We start with the constant coefficient a = 1.
B14: First adjust b (-10 to 10) in the linear coefficient 1/b.
E15: =F15-10 -> -2 | F15: 8
B16: Next adjust c (-10 to 10) in the quadratic coefficient 1/c. | L16: =" y = "&Sheet3!P13 & Sheet3!P15 & Sheet3!P17 & Sheet3!P19 & Sheet3!P21 & Sheet3!P23 -> y = 1 - (1/2)x - (1/4)x^2 + 0x^3+ (1/16)x^4+ (1/30)x^5 - (1/820)x^6
E17: =F17-10 -> -4 | F17: 6
B18: Then adjust d (-10 to 10) in the cubic coefficient 1/d.
E19: =F19-10 -> 0 | F19: 10
B20: Then adjust e (-30 to 30) in the quartic coefficient 1/e | M20: Enter an interval from -c to +c on which to measure the accuracy
E21: =2*F21-30 -> 16 | F21: 23
B22: Then adjust f (-200 to 200) in the fifth degree coefficient 1/f | M22: =-P22 -> -3.1 | N22: to | O22: =P22 -> 3.1 | P22: =0.1+$Q22/10 -> 3.1 | Q22: 30
E23: =10*F23-200 -> 30 | F23: 23
B24: Finally adjust the 6th degree coefficient g (-1000 to 1000). | M24: The sum of the squares = | P24: =Sheet3!P27 -> 770.6027519
E25: =20*F25-1000 -> -820 | F25: 9
C29: Click each item below for suggestions and investigations
D30: Item 1
D31: Item 2
D32: Item 3
D33: Item 4
D34: Item 5
A39: Created by: Sheldon P. Gordon
A40: Farmingdale StateCollege
A41: Development of this module was supported by the
A42: NSF's Division of Undergraduate Education
A43: under grants DUE-0310123 and DUE-0442160.

Sheet Sheet3
D1: Sines | M1: Cosine
A2: -6 | B2: =SIN(A2) -> 0.2794154982 | C2: =0+H$3*A2+H$4*A2^2+H$5*A2^3+H$6*A2^4+H$7*A2^5+H$8*A2^6 -> -27.6 | D2: =IF(A2<Sines!M$22,0,(B2-C2)^2) -> 0 | E2: 0 | F2: 1 | H2: coefficients | J2: -6 | K2: =COS(J2) -> 0.9601702867 | L2: =1+Q$3*J2+Q$4*J2^2+Q$5*J2^3+Q$6*J2^4+Q$7*J2^5+Q$8*J2^6 -> -240.097561 | M2: =IF(J2<Cosines!M$22,0,(K2-L2)^2) -> 0 | N2: 0 | O2: 1 | Q2: coefficients
A3: =A2+12/200 -> -5.94 | B3: 0.3364883585 | C3: -25.64723843 | D3: =IF(A3<Sines!M$22,0,(B3-C3)^2) -> 0 | H3: =IF(Sines!E15=0,0,1/Sines!E15) -> 1 | J3: =J2+12/200 -> -5.94 | K3: 0.9416876258 | L3: -227.1071683 | M3: =IF(J3<Cosines!M$22,0,(K3-L3)^2) -> 0 | Q3: =IF(Cosines!E15=0,0,1/Cosines!E15) -> -0.5
A4: -5.88 | B4: 0.392350224 | C4: -23.79457323 | D4: =IF(A4<Sines!M$22,0,(B4-C4)^2) -> 0 | E4: -6 | F4: =a -> 0 | H4: =IF(Sines!E17=0,0,1/Sines!E17) -> 0 | J4: -5.88 | K4: 0.9198159064 | L4: -214.6903205 | M4: =IF(J4<Cosines!M$22,0,(K4-L4)^2) -> 0 | N4: -6 | O4: =a -> 0 | Q4: =IF(Cosines!E17=0,0,1/Cosines!E17) -> -0.25
A5: -5.82 | B5: 0.4468000524 | C5: -22.03849127 | D5: =IF(A5<Sines!M$22,0,(B5-C5)^2) -> 0 | E5: 6 | F5: =a -> 0 | H5: =IF(Sines!E19=0,0,1/Sines!E19) -> -0.2 | J5: -5.82 | K5: 0.8946338431 | L5: -202.8273173 | M5: =IF(J5<Cosines!M$22,0,(K5-L5)^2) -> 0 | N5: 6 | O5: =a -> 0 | Q5: =IF(Cosines!E19=0,0,1/Cosines!E19) -> 0
A6: -5.76 | B6: 0.4996418831 | C6: -20.3755556 | D6: =IF(A6<Sines!M$22,0,(B6-C6)^2) -> 0 | H6: =IF(Sines!E21=0,0,1/Sines!E21) -> 0 | J6: -5.76 | K6: 0.866232064 | L6: -191.4989409 | M6: =IF(J6<Cosines!M$22,0,(K6-L6)^2) -> 0 | Q6: =IF(Cosines!E21=0,0,1/Cosines!E21) -> 0.0625
A7: -5.7 | B7: 0.5506855426 | C7: -18.80240475 | D7: =IF(A7<Sines!M$22,0,(B7-C7)^2) -> 0 | H7: =IF(Sines!E23=0,0,1/Sines!E23) -> 0.008333333333 | J7: -5.7 | K7: 0.8347127848 | L7: -180.6864484 | M7: =IF(J7<Cosines!M$22,0,(K7-L7)^2) -> 0 | Q7: =IF(Cosines!E23=0,0,1/Cosines!E23) -> 0.03333333333
A8: -5.64 | B8: 0.5997473288 | C8: -17.31575185 | D8: =IF(A8<Sines!M$22,0,(B8-C8)^2) -> 0 | H8: =IF(Sines!E25=0,0,1/Sines!E25) -> 0 | J8: -5.64 | K8: 0.8001894411 | L8: -170.3715648 | M8: =IF(J8<Cosines!M$22,0,(K8-L8)^2) -> 0 | Q8: =IF(Cosines!E25=0,0,1/Cosines!E25) -> -0.001219512195
A9: -5.58 | B9: 0.6466506723 | C9: -15.91238393 | D9: =IF(A9<Sines!M$22,0,(B9-C9)^2) -> 0 | J9: -5.58 | K9: 0.7627862794 | L9: -160.5364759 | M9: =IF(J9<Cosines!M$22,0,(K9-L9)^2) -> 0
A10: -5.52 | B10: 0.6912267716 | C10: -14.5891611 | D10: =IF(A10<Sines!M$22,0,(B10-C10)^2) -> 0 | J10: -5.52 | K10: 0.7226379109 | L10: -151.1638217 | M10: =IF(J10<Cosines!M$22,0,(K10-L10)^2) -> 0
A11: -5.46 | B11: 0.733315201 | C11: -13.3430158 | D11: =IF(A11<Sines!M$22,0,(B11-C11)^2) -> 0 | J11: -5.46 | K11: 0.6798888262 | L11: -142.236689 | M11: =IF(J11<Cosines!M$22,0,(K11-L11)^2) -> 0
A12: -5.4 | B12: 0.7727644876 | C12: -12.170952 | D12: =IF(A12<Sines!M$22,0,(B12-C12)^2) -> 0 | G12: Polynomial: | J12: -5.4 | K12: 0.6346928759 | L12: -133.7386047 | M12: =IF(J12<Cosines!M$22,0,(K12-L12)^2) -> 0 | P12: Polynomial:
A13: -5.34 | B13: 0.8094326564 | C13: -11.07004443 | D13: =IF(A13<Sines!M$22,0,(B13-C13)^2) -> 0 | F13: linear | G13: =IF(Sines!E15>0,"0 + (1/" &TEXT(Sines!E15,"#") &")x ",IF(Sines!E15<0,"0 - (1/" &TEXT(-1*Sines!E15,"#") & ")x ","0 - 0x ")) -> 0 + (1/1)x | J13: -5.34 | K13: 0.5872127167 | L13: -125.653529 | M13: =IF(J13<Cosines!M$22,0,(K13-L13)^2) -> 0 | O13: linear | P13: =IF(Cosines!E15>0,"1 + (1/" &TEXT(Cosines!E15,"#") &")x ",IF(Cosines!E15<0,"1 - (1/" &TEXT(-1*Cosines!E15,"#") & ")x ","1 + 0x ")) -> 1 - (1/2)x
C14: 0 | D14: =IF(A14<Sines!M$22,0,(B14-C14)^2) -> 0 | J14: -5.28 | K14: 0.5376192258 | L14: -117.9658485 | M14: =IF(J14<Cosines!M$22,0,(K14-L14)^2) -> 0
A15: =A13+12/200 -> -5.28 | B15: =SIN(A15) -> 0.8431877419 | C15: -10.03743781 | D15: =IF(A15<Sines!M$22,0,(B15-C15)^2) -> 0 | F15: quad | G15: =IF(Sines!E17>0,"+ (1/"&TEXT(Sines!E17,"#")&")x^2",IF(Sines!E17<0," - (1/"&TEXT(-1*Sines!E17,"#")&")x^2 "," + 0x^2")) -> + 0x^2 | J15: -5.22 | K15: 0.4860908863 | L15: -110.6603694 | M15: =IF(J15<Cosines!M$22,0,(K15-L15)^2) -> 0 | O15: quad | P15: =IF(Cosines!E17>0,"+ (1/"&TEXT(Cosines!E17,"#")&")x^2",IF(Cosines!E17<0," - (1/"&TEXT(-1*Cosines!E17,"#")&")x^2 "," + 0x^2")) -> - (1/4)x^2
A16: =A15+12/200 -> -5.22 | B16: 0.8739082619 | C16: -9.070346061 | D16: =IF(A16<Sines!M$22,0,(B16-C16)^2) -> 0 | J16: -5.16 | K16: 0.4328131445 | L16: -103.7223109 | M16: =IF(J16<Cosines!M$22,0,(K16-L16)^2) -> 0
A17: -5.16 | B17: 0.901483656 | C17: -8.16605154 | D17: =IF(A17<Sines!M$22,0,(B17-C17)^2) -> 0 | F17: cubic | G17: =IF(Sines!E19>0," + (1/"&TEXT(Sines!E19,"#") &")x^3", IF(Sines!E19<0," - (1/"&TEXT(-1*Sines!E19,"#")&")x^3 "," - 0x^3")) -> - (1/5)x^3 | J17: -5.1 | K17: 0.3779777427 | L17: -97.13729831 | M17: =IF(J17<Cosines!M$22,0,(K17-L17)^2) -> 0 | O17: cubic | P17: =IF(Cosines!E19>0," + (1/"&TEXT(Cosines!E19,"#") &")x^3", IF(Cosines!E19<0," - (1/"&TEXT(-1*Cosines!E19,"#")&")x^3 ","+ 0x^3")) -> + 0x^3
A18: -5.1 | B18: 0.9258146823 | C18: -7.32190425 | D18: =IF(A18<Sines!M$22,0,(B18-C18)^2) -> 0 | J18: -5.04 | K18: 0.3217820292 | L18: -90.89135648 | M18: =IF(J18<Cosines!M$22,0,(K18-L18)^2) -> 0
A19: -5.04 | B19: 0.9468137756 | C19: -6.535321068 | D19: =IF(A19<Sines!M$22,0,(B19-C19)^2) -> 0 | F19: quartic | G19: =IF(Sines!E21>0,"+ (1/"&TEXT(Sines!E21,"#")&")x^4",IF(Sines!E21<0," - (1/"&TEXT(-1*Sines!E21,"#")&")x^4 ", " + 0x^4 ")) -> + 0x^4 | J19: -4.98 | K19: 0.264428248 | L19: -84.97090329 | M19: =IF(J19<Cosines!M$22,0,(K19-L19)^2) -> 0 | O19: quartic | P19: =IF(Cosines!E21>0,"+ (1/"&TEXT(Cosines!E21,"#")&")x^4",IF(Cosines!E21<0," - (1/"&TEXT(-1*Cosines!E21,"#")&")x^4 ", " + 0x^4 ")) -> + (1/16)x^4
A20: -4.98 | B20: 0.9644053617 | C20: -5.803784967 | D20: =IF(A20<Sines!M$22,0,(B20-C20)^2) -> 0 | J20: -4.92 | K20: 0.2061228105 | L20: -79.36274292 | M20: =IF(J20<Cosines!M$22,0,(K20-L20)^2) -> 0
A21: -4.92 | B21: 0.9785261299 | C21: -5.124844239 | D21: =IF(A21<Sines!M$22,0,(B21-C21)^2) -> 0 | F21: quintic | G21: =IF(Sines!E23>0,"+ (1/"&TEXT(Sines!E23,"#") &")x^5",IF(Sines!E23<0," - (1/"&TEXT(-1*Sines!E23,"#")&")x^5 "," + 0x^5")) -> + (1/120)x^5 | J21: -4.86 | K21: 0.1470755536 | L21: -74.05405944 | M21: =IF(J21<Cosines!M$22,0,(K21-L21)^2) -> 0 | O21: quintic | P21: =IF(Cosines!E23>0,"+ (1/"&TEXT(Cosines!E23,"#") &")x^5",IF(Cosines!E23<0," - (1/"&TEXT(-1*Cosines!E23,"#")&")x^5 "," + 0x^5")) -> + (1/30)x^5
A22: -4.86 | B22: 0.9891252608 | C22: -4.496111718 | D22: =IF(A22<Sines!M$22,0,(B22-C22)^2) -> 0 | J22: -4.8 | K22: 0.08749898344 | L22: -69.03241022 | M22: =IF(J22<Cosines!M$22,0,(K22-L22)^2) -> 0
A23: -4.8 | B23: 0.9961646088 | C23: -3.915264 | D23: =IF(A23<Sines!M$22,0,(B23-C23)^2) -> 0 | F23: 6th degree | G23: =IF(Sines!E25>0,"+ (1/"&TEXT(Sines!E25,"#") &")x^6",IF(Sines!E25<0," - (1/"&TEXT(-1*Sines!E25,"#")&")x^6 "," + 0x^6")) -> + 0x^6 | J23: -4.74 | K23: 0.02760751145 | L23: -64.28571957 | M23: =IF(J23<Cosines!M$22,0,(K23-L23)^2) -> 0 | O23: 6th degree | P23: =IF(Cosines!E25>0,"+ (1/"&TEXT(Cosines!E25,"#") &")x^6",IF(Cosines!E25<0," - (1/"&TEXT(-1*Cosines!E25,"#")&")x^6 "," + 0x^6")) -> - (1/820)x^6
A24: -4.74 | B24: 0.99961884 | C24: -3.380040666 | D24: =IF(A24<Sines!M$22,0,(B24-C24)^2) -> 0 | J24: -4.68 | K24: -0.03238331776 | L24: -59.80227227 | M24: =IF(J24<Cosines!M$22,0,(K24-L24)^2) -> 0
A25: -4.68 | B25: 0.9994755228 | C25: -2.888243505 | D25: =IF(A25<Sines!M$22,0,(B25-C25)^2) -> 0 | J25: -4.62 | K25: -0.092257602 | L25: -55.57070722 | M25: =IF(J25<Cosines!M$22,0,(K25-L25)^2) -> 0
A26: -4.62 | B26: 0.9957351731 | C26: -2.437735737 | D26: =IF(A26<Sines!M$22,0,(B26-C26)^2) -> 0 | F26: sum of squares = | J26: -4.56 | K26: -0.1517998585 | L26: -51.58001112 | M26: =IF(J26<Cosines!M$22,0,(K26-L26)^2) -> 0 | O26: sum of squares =
A27: -4.56 | B27: 0.9884112519 | C27: -2.026441236 | D27: =IF(A27<Sines!M$22,0,(B27-C27)^2) -> 0 | G27: =SUM(D2:D203) -> 9.318848324 | J27: -4.5 | K27: -0.2107957994 | L27: -47.8195122 | M27: =IF(J27<Cosines!M$22,0,(K27-L27)^2) -> 0 | P27: =SUM(M2:M203) -> 770.6027519
A28: -4.5 | B28: 0.9775301177 | C28: -1.65234375 | D28: =IF(A28<Sines!M$22,0,(B28-C28)^2) -> 0 | J28: -4.44 | K28: -0.2690331031 | L28: -44.27887392 | M28: =IF(J28<Cosines!M$22,0,(K28-L28)^2) -> 0
A29: -4.44 | B29: 0.9631309306 | C29: -1.313486124 | D29: =IF(A29<Sines!M$22,0,(B29-C29)^2) -> 0 | J29: -4.38 | K29: -0.3263021782 | L29: -40.94808885 | M29: =IF(J29<Cosines!M$22,0,(K29-L29)^2) -> 0
A30: -4.38 | B30: 0.9452655122 | C30: -1.007969523 | D30: =IF(A30<Sines!M$22,0,(B30-C30)^2) -> 0 | J30: -4.32 | K30: -0.3823969177 | L30: -37.81747243 | M30: =IF(J30<Cosines!M$22,0,(K30-L30)^2) -> 0
A31: -4.32 | B31: 0.9239981587 | C31: -0.7339526554 | D31: =IF(A31<Sines!M$22,0,(B31-C31)^2) -> 0 | J31: -4.26 | K31: -0.4371154413 | L31: -34.87765688 | M31: =IF(J31<Cosines!M$22,0,(K31-L31)^2) -> 0
A32: -4.26 | B32: 0.8994054097 | C32: -0.4896509945 | D32: =IF(A32<Sines!M$22,0,(B32-C32)^2) -> 0 | J32: -4.2 | K32: -0.4902608213 | L32: -32.11958515 | M32: =IF(J32<Cosines!M$22,0,(K32-L32)^2) -> 0
A33: -4.2 | B33: 0.8715757724 | C33: -0.273336 | D33: =IF(A33<Sines!M$22,0,(B33-C33)^2) -> 0 | J33: -4.14 | K33: -0.5416417918 | L33: -29.53450482 | M33: =IF(J33<Cosines!M$22,0,(K33-L33)^2) -> 0
A34: -4.14 | B34: 0.8406094036 | C34: -0.08333434152 | D34: =IF(A34<Sines!M$22,0,(B34-C34)^2) -> 0 | J34: -4.08 | K34: -0.5910734368 | L34: -27.11396214 | M34: =IF(J34<Cosines!M$22,0,(K34-L34)^2) -> 0
A35: -4.08 | B35: 0.8066177486 | C35: 0.08197287936 | D35: =IF(A35<Sines!M$22,0,(B35-C35)^2) -> 0 | J35: =J34+12/200 -> -4.02 | K35: -0.6383778556 | L35: -24.84979608 | M35: =IF(J35<Cosines!M$22,0,(K35-L35)^2) -> 0
A36: -4.02 | B36: 0.7697231408 | C36: 0.2241509066 | D36: =IF(A36<Sines!M$22,0,(B36-C36)^2) -> 0 | J36: -3.96 | K36: -0.6833848036 | L36: -22.73413237 | M36: =IF(J36<Cosines!M$22,0,(K36-L36)^2) -> 0
A37: -3.96 | B37: 0.7300583608 | C37: 0.3447121075 | D37: =IF(A37<Sines!M$22,0,(B37-C37)^2) -> 0 | J37: -3.9 | K37: -0.7259323042 | L37: -20.75937768 | M37: =IF(J37<Cosines!M$22,0,(K37-L37)^2) -> 0
A38: -3.9 | B38: 0.6877661592 | C38: 0.44511675 | D38: =IF(A38<Sines!M$22,0,(B38-C38)^2) -> 0 | J38: -3.84 | K38: -0.7658672324 | L38: -18.91821374 | M38: =IF(J38<Cosines!M$22,0,(K38-L38)^2) -> 0
A39: -3.84 | B39: 0.6429987421 | C39: 0.5267737805 | D39: =IF(A39<Sines!M$22,0,(B39-C39)^2) -> 0 | J39: -3.78 | K39: -0.8030458657 | L39: -17.20359156 | M39: =IF(J39<Cosines!M$22,0,(K39-L39)^2) -> 0
A40: -3.78 | B40: 0.5959172238 | C40: 0.5910416014 | D40: =IF(A40<Sines!M$22,0,(B40-C40)^2) -> 0 | J40: -3.72 | K40: -0.837334401 | L40: -15.60872571 | M40: =IF(J40<Cosines!M$22,0,(K40-L40)^2) -> 0
A41: -3.72 | B41: 0.5466910471 | C41: 0.6392288486 | D41: =IF(A41<Sines!M$22,0,(B41-C41)^2) -> 0 | J41: -3.66 | K41: -0.8686094366 | L41: -14.12708855 | M41: =IF(J41<Cosines!M$22,0,(K41-L41)^2) -> 0
A42: -3.66 | B42: 0.4954973729 | C42: 0.6725951695 | D42: =IF(A42<Sines!M$22,0,(B42-C42)^2) -> 0 | J42: -3.6 | K42: -0.8967584163 | L42: -12.7524046 | M42: =IF(J42<Cosines!M$22,0,(K42-L42)^2) -> 0
A43: -3.6 | B43: 0.4425204433 | C43: 0.692352 | D43: =IF(A43<Sines!M$22,0,(B43-C43)^2) -> 0 | J43: -3.54 | K43: -0.9216800341 | L43: -11.4786449 | M43: =IF(J43<Cosines!M$22,0,(K43-L43)^2) -> 0
A44: -3.54 | B44: 0.3879509179 | C44: 0.6996633425 | D44: =IF(A44<Sines!M$22,0,(B44-C44)^2) -> 0 | J44: -3.48 | K44: -0.943284599 | L44: -10.30002142 | M44: =IF(J44<Cosines!M$22,0,(K44-L44)^2) -> 0
A45: -3.48 | B45: 0.3319851882 | C45: 0.6956465434 | D45: =IF(A45<Sines!M$22,0,(B45-C45)^2) -> 0 | J45: -3.42 | K45: -0.9614943581 | L45: -9.210981506 | M45: =IF(J45<Cosines!M$22,0,(K45-L45)^2) -> 0
A46: -3.42 | B46: 0.2748246703 | C46: 0.6813730706 | D46: =IF(A46<Sines!M$22,0,(B46-C46)^2) -> 0 | J46: -3.36 | K46: -0.9762437757 | L46: -8.206202383 | M46: =IF(J46<Cosines!M$22,0,(K46-L46)^2) -> 0
A47: -3.36 | B47: =SIN(A47) -> 0.2166750804 | C47: 0.6578692915 | D47: =IF(A47<Sines!M$22,0,(B47-C47)^2) -> 0.1946523319 | J47: -3.3 | K47: -0.9874797699 | L47: -7.280585688 | M47: =IF(J47<Cosines!M$22,0,(K47-L47)^2) -> 0
A48: =A47+12/200 -> -3.3 | B48: 0.1577456941 | C48: 0.62611725 | D48: =IF(A48<Sines!M$22,0,(B48-C48)^2) -> 0.2193719143 | J48: -3.24 | K48: -0.9951619033 | L48: -6.429252039 | M48: =IF(J48<Cosines!M$22,0,(K48-L48)^2) -> 0
A49: -3.24 | B49: 0.09824859375 | C49: 0.5870554445 | D49: =IF(A49<Sines!M$22,0,(B49-C49)^2) -> 0.2389321373 | J49: -3.18 | K49: -0.9992625285 | L49: -5.647535657 | M49: =IF(J49<Cosines!M$22,0,(K49-L49)^2) -> 0
A50: -3.18 | B50: 0.03839790451 | C50: 0.5415796054 | D50: =IF(A50<Sines!M$22,0,(B50-C50)^2) -> 0.2531918241 | J50: -3.12 | K50: -0.9997668877 | L50: -4.930979018 | M50: =IF(J50<Cosines!M$22,0,(K50-L50)^2) -> 0
A51: -3.12 | B51: -0.02159097573 | C51: 0.4905434726 | D51: =IF(A51<Sines!M$22,0,(B51-C51)^2) -> 0.2622816932 | J51: -3.06 | K51: -0.9966731657 | L51: -4.275327554 | M51: =IF(J51<Cosines!M$22,0,(K51-L51)^2) -> 10.7495746
A52: -3.06 | B52: -0.08150215176 | C52: 0.4347595735 | D52: =IF(A52<Sines!M$22,0,(B52-C52)^2) -> 0.266526169 | J52: -3 | K52: -0.9899924966 | L52: -3.67652439 | M52: =IF(J52<Cosines!M$22,0,(K52-L52)^2) -> 7.217453616
A53: -3 | B53: -0.1411200081 | C53: 0.375 | D53: =IF(A53<Sines!M$22,0,(B53-C53)^2) -> 0.2663798627 | J53: -2.94 | K53: -0.9797489236 | L53: -3.130705127 | M53: =IF(J53<Cosines!M$22,0,(K53-L53)^2) -> 4.626612587
A54: -2.94 | B54: -0.2002299847 | C54: 0.3119971865 | D54: =IF(A54<Sines!M$22,0,(B54-C54)^2) -> 0.2623766749 | J54: -2.88 | K54: -0.9659793124 | L54: -2.634192657 | M54: =IF(J54<Cosines!M$22,0,(K54-L54)^2) -> 2.782935764
A55: -2.88 | B55: -0.2586193497 | C55: 0.2464446874 | D55: =IF(A55<Sines!M$22,0,(B55-C55)^2) -> 0.2550896815 | J55: -2.82 | K55: -0.9487332188 | L55: -2.183492033 | M55: =IF(J55<Cosines!M$22,0,(K55-L55)^2) -> 1.524629329
A56: -2.82 | B56: -0.3160779642 | C56: 0.1789979546 | D56: =IF(A56<Sines!M$22,0,(B56-C56)^2) -> 0.2451001654 | J56: -2.76 | K56: -0.9280727102 | L56: -1.775285363 | M56: =IF(J56<Cosines!M$22,0,(K56-L56)^2) -> 0.7177692795
A57: -2.76 | B57: -0.3723990394 | C57: 0.1102751155 | D57: =IF(A57<Sines!M$22,0,(B57-C57)^2) -> 0.2329743399 | J57: -2.7 | K57: -0.904072142 | L57: -1.406426761 | M57: =IF(J57<Cosines!M$22,0,(K57-L57)^2) -> 0.2523601632
A58: -2.7 | B58: -0.4273798802 | C58: 0.04085775 | D58: =IF(A58<Sines!M$22,0,(B58-C58)^2) -> 0.2192464784 | J58: -2.64 | K58: -0.8768178904 | L58: -1.073937326 | M58: =IF(J58<Cosines!M$22,0,(K58-L58)^2) -> 0.03885607196
A59: -2.64 | B59: -0.480822615 | C59: -0.02870833152 | D59: =IF(A59<Sines!M$22,0,(B59-C59)^2) -> 0.2044073253 | J59: -2.58 | K59: -0.8464080412 | L59: -0.7750001721 | M59: =IF(J59<Cosines!M$22,0,(K59-L59)^2) -> 0.005099083773
A60: -2.58 | B60: -0.5325349076 | C60: -0.09791231064 | D60: =IF(A60<Sines!M$22,0,(B60-C60)^2) -> 0.1888968017 | J60: -2.52 | K60: -0.8129520371 | L60: -0.5069554918 | M60: =IF(J60<Cosines!M$22,0,(K60-L60)^2) -> 0.09363388574
A61: -2.52 | B61: -0.5823306495 | C61: -0.1662775834 | D61: =IF(A61<Sines!M$22,0,(B61-C61)^2) -> 0.1731001539 | J61: -2.46 | K61: -0.7765702835 | L61: -0.2672956656 | M61: =IF(J61<Cosines!M$22,0,(K61-L61)^2) -> 0.2593606365
A62: -2.46 | B62: -0.63003063 | C62: -0.2333609825 | D62: =IF(A62<Sines!M$22,0,(B62-C62)^2) -> 0.1573468093 | J62: -2.4 | K62: -0.7373937155 | L62: -0.05366040976 | M62: =IF(J62<Cosines!M$22,0,(K62-L62)^2) -> 0.4674912334
A63: -2.4 | B63: -0.6754631806 | C63: -0.298752 | D63: =IF(A63<Sines!M$22,0,(B63-C63)^2) -> 0.1419113136 | J63: -2.34 | K63: -0.6955633265 | L63: 0.1361680342 | M63: =IF(J63<Cosines!M$22,0,(K63-L63)^2) -> 0.6917770563
A64: -2.34 | B64: -0.7184647931 | C64: -0.3620720095 | D64: =IF(A64<Sines!M$22,0,(B64-C64)^2) -> 0.1270158162 | J64: -2.28 | K64: -0.6512296605 | L64: 0.3042696689 | M64: =IF(J64<Cosines!M$22,0,(K64-L64)^2) -> 0.9129789686
A65: -2.28 | B65: -0.7588807082 | C65: -0.4229734886 | D65: =IF(A65<Sines!M$22,0,(B65-C65)^2) -> 0.1128336601 | J65: -2.22 | K65: -0.6045522711 | L65: 0.4525914698 | M65: =IF(J65<Cosines!M$22,0,(K65-L65)^2) -> 1.117552889
A66: -2.22 | B66: -0.7965654722 | C66: =0+H$3*A66+H$4*A66^2+H$5*A66^3+H$6*A66^4+H$7*A66^5+H$8*A66^6 -> -0.4811392414 | D66: =IF(A66<Sines!M$22,0,(B66-C66)^2) -> 0.09949370712 | J66: -2.16 | K66: =COS(J66) -> -0.5556991463 | L66: =1+Q$3*J66+Q$4*J66^2+Q$5*J66^3+Q$6*J66^4+Q$7*J66^5+Q$8*J66^6 -> 0.5829520724 | M66: =IF(J66<Cosines!M$22,0,(K66-L66)^2) -> 1.296526598
A67: -2.16 | B67: -0.8313834608 | C67: -0.5362816205 | D67: =IF(A67<Sines!M$22,0,(B67-C67)^2) -> 0.08708509615 | J67: =J66+12/200 -> -2.1 | K67: -0.5048461046 | L67: 0.6970464195 | M67: =IF(J67<Cosines!M$22,0,(K67-L67)^2) -> 1.44454564
A68: -2.1 | B68: -0.8632093666 | C68: -0.58814175 | D68: =IF(A68<Sines!M$22,0,(B68-C68)^2) -> 0.07566219373 | J68: -2.04 | K68: -0.4521761621 | L68: 0.7964503665 | M68: =IF(J68<Cosines!M$22,0,(K68-L68)^2) -> 1.559068208
A69: -2.04 | B69: -0.891928651 | C69: -0.6364887475 | D69: =IF(A69<Sines!M$22,0,(B69-C69)^2) -> 0.06524954427 | J69: -1.98 | K69: -0.3978788738 | L69: 0.8826252459 | M69: =IF(J69<Cosines!M$22,0,(K69-L69)^2) -> 1.639690801
A70: -1.98 | B70: -0.9174379553 | C70: -0.6811189466 | D70: =IF(A70<Sines!M$22,0,(B70-C70)^2) -> 0.05584667385 | J70: -1.92 | K70: -0.3421496512 | L70: 0.9569223917 | M70: =IF(J70<Cosines!M$22,0,(K70-L70)^2) -> 1.687588172
A71: -1.92 | B71: -0.9396454737 | C71: -0.7218551194 | D71: =IF(A71<Sines!M$22,0,(B71-C71)^2) -> 0.04743263844 | J71: -1.86 | K71: -0.2851890592 | L71: 1.020587621 | M71: =IF(J71<Cosines!M$22,0,(K71-L71)^2) -> 1.705052739
A72: -1.86 | B72: -0.9584712831 | C72: -0.7585456985 | D72: =IF(A72<Sines!M$22,0,(B72-C72)^2) -> 0.03997023938 | J72: -1.8 | K72: -0.2272020947 | L72: 1.074765678 | M72: =IF(J72<Cosines!M$22,0,(K72-L72)^2) -> 1.695120081
A73: -1.8 | B73: -0.9738476309 | C73: -0.791064 | D73: =IF(A73<Sines!M$22,0,(B73-C73)^2) -> 0.03340985572 | J73: -1.74 | K73: -0.1683974479 | L73: 1.120504632 | M73: =IF(J73<Cosines!M$22,0,(K73-L73)^2) -> 1.661268571
A74: -1.74 | B74: -0.9857191788 | C74: -0.8193074455 | D74: =IF(A74<Sines!M$22,0,(B74-C74)^2) -> 0.02769286499 | J74: -1.68 | K74: -0.1089867522 | L74: 1.158760238 | M74: =IF(J74<Cosines!M$22,0,(K74-L74)^2) -> 1.607182432
A75: -1.68 | B75: -0.9940432022 | C75: -0.8431967846 | D75: =IF(A75<Sines!M$22,0,(B75-C75)^2) -> 0.02275464169 | J75: -1.62 | K75: -0.04918382191 | L75: 1.19040026 | M75: =IF(J75<Cosines!M$22,0,(K75-L75)^2) -> 1.536568695
A76: -1.62 | B76: -0.9987897435 | C76: -0.8626753174 | D76: =IF(A76<Sines!M$22,0,(B76-C76)^2) -> 0.018527137 | J76: -1.56 | K76: 0.01079611706 | L76: 1.21620874 | M76: =IF(J76<Cosines!M$22,0,(K76-L76)^2) -> 1.453019591
A77: -1.56 | B77: -0.9999417202 | C77: -0.8777081165 | D77: =IF(A77<Sines!M$22,0,(B77-C77)^2) -> 0.01494105389 | J77: -1.5 | K77: 0.07073720167 | L77: 1.236890244 | M77: =IF(J77<Cosines!M$22,0,(K77-L77)^2) -> 1.359912918
A78: -1.5 | B78: -0.9974949866 | C78: -0.88828125 | D78: =IF(A78<Sines!M$22,0,(B78-C78)^2) -> 0.01192764026 | J78: -1.44 | K78: 0.1304237087 | L78: 1.253074053 | M78: =IF(J78<Cosines!M$22,0,(K78-L78)^2) -> 1.260343795
A79: -1.44 | B79: =SIN(A79) -> -0.9914583482 | C79: -0.8944010035 | D79: =IF(A79<Sines!M$22,0,(B79-C79)^2) -> 0.009420128155 | J79: -1.38 | K79: 0.1896408313 | L79: 1.265318318 | M79: =IF(J79<Cosines!M$22,0,(K79-L79)^2) -> 1.157082056
A80: =A79+12/200 -> -1.38 | B80: -0.9818535304 | C80: -0.8960931026 | D80: =IF(A80<Sines!M$22,0,(B80-C80)^2) -> 0.007354850965 | J80: -1.32 | K80: 0.2481754517 | L80: 1.274114179 | M80: =IF(J80<Cosines!M$22,0,(K80-L80)^2) -> 1.052550271
A81: -1.32 | B81: -0.9687151001 | C81: -0.8934019354 | D81: =IF(A81<Sines!M$22,0,(B81-C81)^2) -> 0.005672072786 | J81: -1.26 | K81: 0.3058169084 | L81: 1.279889829 | M81: =IF(J81<Cosines!M$22,0,(K81-L81)^2) -> 0.9488180547
A82: -1.26 | B82: -0.9520903416 | C82: -0.8863897745 | D82: =IF(A82<Sines!M$22,0,(B82-C82)^2) -> 0.004316564519 | J82: -1.2 | K82: 0.3623577545 | L82: 1.283014556 | M82: =IF(J82<Cosines!M$22,0,(K82-L82)^2) -> 0.8476089464
A83: -1.2 | B83: -0.932039086 | C83: -0.875136 | D83: =IF(A83<Sines!M$22,0,(B83-C83)^2) -> 0.003237961193 | J83: -1.14 | K83: 0.417594504 | L83: 1.283802728 | M83: =IF(J83<Cosines!M$22,0,(K83-L83)^2) -> 0.7503166875
A84: -1.14 | B84: -0.9086334961 | C84: -0.8597363215 | D84: =IF(A84<Sines!M$22,0,(B84-C84)^2) -> 0.002390933683 | J84: -1.08 | K84: 0.4713283642 | L84: 1.282517745 | M84: =IF(J84<Cosines!M$22,0,(K84-L84)^2) -> 0.6580282113
A85: -1.08 | B85: -0.8819578069 | C85: -0.8403020006 | D85: =IF(A85<Sines!M$22,0,(B85-C85)^2) -> 0.001735206194 | J85: -1.02 | K85: 0.5233659513 | L85: 1.279375948 | M85: =IF(J85<Cosines!M$22,0,(K85-L85)^2) -> 0.5715511148
A86: -1.02 | B86: -0.8521080219 | C86: -0.8169590734 | D86: =IF(A86<Sines!M$22,0,(B86-C86)^2) -> 0.001235448587 | J86: -0.96 | K86: 0.5735199861 | L86: 1.274550487 | M86: =IF(J86<Cosines!M$22,0,(K86-L86)^2) -> 0.4914437638
A87: -0.96 | B87: -0.8191915683 | C87: -0.7898475725 | D87: =IF(A87<Sines!M$22,0,(B87-C87)^2) -> 0.0008610700907 | J87: -0.9 | K87: 0.6216099683 | L87: 1.268175151 | M87: =IF(J87<Cosines!M$22,0,(K87-L87)^2) -> 0.4180465358
A88: -0.9 | B88: -0.7833269096 | C88: -0.75912075 | D88: =IF(A88<Sines!M$22,0,(B88-C88)^2) -> 0.0005859381639 | J88: -0.84 | K88: 0.6674628258 | L88: 1.26034815 | M88: =IF(J88<Cosines!M$22,0,(K88-L88)^2) -> 0.3515130072
A89: -0.84 | B89: -0.74464312 | C89: -0.7249442995 | D89: =IF(A89<Sines!M$22,0,(B89-C89)^2) -> 0.0003880435272 | J89: -0.78 | K89: 0.710913538 | L89: 1.251135862 | M89: =IF(J89<Cosines!M$22,0,(K89-L89)^2) -> 0.2918401591
A90: -0.78 | B90: -0.7032794192 | C90: -0.6874955786 | D90: =IF(A90<Sines!M$22,0,(B90-C90)^2) -> 0.0002491296228 | J90: -0.72 | K90: 0.7518057291 | L90: 1.240576539 | M90: =IF(J90<Cosines!M$22,0,(K90-L90)^2) -> 0.2388969049
A91: -0.72 | B91: -0.659384672 | C91: -0.6469628314 | D91: =IF(A91<Sines!M$22,0,(B91-C91)^2) -> 0.0001543021242 | J91: -0.66 | K91: 0.7899922315 | L91: 1.228683971 | M91: =IF(J91<Cosines!M$22,0,(K91-L91)^2) -> 0.1924504419
A92: -0.66 | B92: -0.613116852 | C92: -0.6035444105 | D92: =IF(A92<Sines!M$22,0,(B92-C92)^2) -> 9.163163615e-05 | J92: -0.6 | K92: 0.8253356149 | L92: 1.215451102 | M92: =IF(J92<Cosines!M$22,0,(K92-L92)^2) -> 0.1521900936
A93: -0.6 | B93: -0.5646424734 | C93: -0.557448 | D93: =IF(A93<Sines!M$22,0,(B93-C93)^2) -> 5.176044743e-05 | J93: -0.54 | K93: 0.8577086814 | L93: 1.200853622 | M93: =IF(J93<Cosines!M$22,0,(K93-L93)^2) -> 0.1177484504
A94: -0.54 | B94: -0.5141359917 | C94: -0.5088898375 | D94: =IF(A94<Sines!M$22,0,(B94-C94)^2) -> 2.752213319e-05 | J94: -0.48 | K94: 0.8869949228 | L94: 1.184853498 | M94: =IF(J94<Cosines!M$22,0,(K94-L94)^2) -> 0.08871973088
A95: -0.48 | B95: -0.4617791755 | C95: -0.4580939366 | D95: =IF(A95<Sines!M$22,0,(B95-C95)^2) -> 1.358098576e-05 | J95: -0.42 | K95: 0.9130889403 | L95: 1.167402479 | M95: =IF(J95<Cosines!M$22,0,(K95-L95)^2) -> 0.06467537577
A96: -0.42 | B96: -0.4077604531 | C96: -0.4052913094 | D96: =IF(A96<Sines!M$22,0,(B96-C96)^2) -> 6.096670609e-06 | J96: -0.36 | K96: 0.9358968237 | L96: 1.148445551 | M96: =IF(J96<Cosines!M$22,0,(K96-L96)^2) -> 0.04517696168
A97: -0.36 | B97: -0.3522742333 | C97: -0.3507191885 | D97: =IF(A97<Sines!M$22,0,(B97-C97)^2) -> 2.418164315e-06 | J97: -0.3 | K97: 0.9553364891 | L97: 1.127924361 | M97: =IF(J97<Cosines!M$22,0,(K97-L97)^2) -> 0.02978657351
A98: -0.3 | B98: -0.2955202067 | C98: -0.29462025 | D98: =IF(A98<Sines!M$22,0,(B98-C98)^2) -> 8.099219923e-07 | J98: -0.24 | K98: 0.9713379749 | L98: 1.105780585 | M98: =IF(J98<Cosines!M$22,0,(K98-L98)^2) -> 0.01807481539
A99: -0.24 | B99: -0.2377026264 | C99: -0.2372418355 | D99: =IF(A99<Sines!M$22,0,(B99-C99)^2) -> 2.123282601e-07 | J99: -0.18 | K99: 0.9838436928 | L99: 1.08195927 | M99: =IF(J99<Cosines!M$22,0,(K99-L99)^2) -> 0.009626666484
A100: -0.18 | B100: -0.1790295734 | C100: -0.1788351746 | D100: =IF(A100<Sines!M$22,0,(B100-C100)^2) -> 3.779088793e-08 | J100: -0.12 | K100: 0.9928086359 | L100: 1.056412127 | M100: =IF(J100<Cosines!M$22,0,(K100-L100)^2) -> 0.004045404076
A101: -0.12 | B101: -0.1197122073 | C101: -0.1196546074 | D101: =IF(A101<Sines!M$22,0,(B101-C101)^2) -> 3.317751812e-09 | J101: -0.06 | K101: 0.9982005399 | L101: 1.029100784 | M101: =IF(J101<Cosines!M$22,0,(K101-L101)^2) -> 0.0009548250847
A102: -0.06 | B102: -0.05996400648 | C102: -0.05995680648 | D102: =IF(A102<Sines!M$22,0,(B102-C102)^2) -> 5.1839992e-11 | J102: 0 | K102: 1 | L102: 1 | M102: =IF(J102<Cosines!M$23,0,(K102-L102)^2) -> 0
A103: 0 | B103: 0 | C103: 0 | D103: =(B103-C103)^2 -> 0 | J103: =J102+12/200 -> 0.06 | K103: 0.9982005399 | L103: 0.9691008359 | M103: =IF(J103>Cosines!M$22,0,(K103-L103)^2) -> 0
A104: =A103+12/200 -> 0.06 | B104: 0.05996400648 | C104: 0.05995680648 | D104: =IF(A104>Sines!O$22,0,(B104-C104)^2) -> 5.1839992e-11 | J104: 0.12 | K104: 0.9928086359 | L104: 0.9364137858 | M104: =(K104-L104)^2 -> 0.003180379113
A105: 0.12 | B105: 0.1197122073 | C105: 0.1196546074 | D105: =IF(A105>Sines!O$22,0,(B105-C105)^2) -> 3.317751812e-09 | J105: 0.18 | K105: 0.9838436928 | L105: 0.9019718671 | M105: =IF(J105>Cosines!O$23,0,(K105-L105)^2) -> 0
A106: 0.18 | B106: 0.1790295734 | C106: 0.1788351746 | D106: =IF(A106>Sines!O$22,0,(B106-C106)^2) -> 3.779088793e-08 | J106: 0.24 | K106: 0.9713379749 | L106: 0.865833669 | M106: =IF(J106>Cosines!O$22,0,(K106-L106)^2) -> 0.01113115855
A107: 0.24 | B107: 0.2377026264 | C107: 0.2372418355 | D107: =IF(A107>Sines!O$22,0,(B107-C107)^2) -> 2.123282601e-07 | J107: 0.3 | K107: 0.9553364891 | L107: 0.828086361 | M107: =IF(J107>Cosines!O$22,0,(K107-L107)^2) -> 0.01619259511
A108: 0.3 | B108: 0.2955202067 | C108: 0.29462025 | D108: =IF(A108>Sines!O$22,0,(B108-C108)^2) -> 8.099219923e-07 | J108: 0.36 | K108: 0.9358968237 | L108: 0.7888486593 | M108: =IF(J108>Cosines!O$22,0,(K108-L108)^2) -> 0.02162316264
A109: 0.36 | B109: 0.3522742333 | C109: 0.3507191885 | D109: =IF(A109>Sines!O$22,0,(B109-C109)^2) -> 2.418164315e-06 | J109: 0.42 | K109: 0.9130889403 | L109: 0.7482737535 | M109: =IF(J109>Cosines!O$22,0,(K109-L109)^2) -> 0.0271640458
A110: 0.42 | B110: 0.4077604531 | C110: 0.4052913094 | D110: =IF(A110>Sines!O$22,0,(B110-C110)^2) -> 6.096670609e-06 | J110: 0.48 | K110: 0.8869949228 | L110: 0.7065521912 | M110: =IF(J110>Cosines!O$22,0,(K110-L110)^2) -> 0.03255957938
A111: 0.48 | B111: =SIN(A111) -> 0.4617791755 | C111: 0.4580939366 | D111: =IF(A111>Sines!O$22,0,(B111-C111)^2) -> 1.358098576e-05 | J111: 0.54 | K111: 0.8577086814 | L111: 0.6639147224 | M111: =IF(J111>Cosines!O$22,0,(K111-L111)^2) -> 0.03755609854
A112: 0.54 | B112: 0.5141359917 | C112: 0.5088898375 | D112: =IF(A112>Sines!O$22,0,(B112-C112)^2) -> 2.752213319e-05 | J112: 0.6 | K112: 0.8253356149 | L112: 0.6206351024 | M112: =IF(J112>Cosines!O$22,0,(K112-L112)^2) -> 0.04190229981
A113: 0.6 | B113: 0.5646424734 | C113: 0.557448 | D113: =IF(A113>Sines!O$22,0,(B113-C113)^2) -> 5.176044743e-05 | J113: 0.66 | K113: 0.7899922315 | L113: 0.5770328544 | M113: =IF(J113>Cosines!O$22,0,(K113-L113)^2) -> 0.04535169629
A114: 0.66 | B114: 0.613116852 | C114: 0.6035444105 | D114: =IF(A114>Sines!O$22,0,(B114-C114)^2) -> 9.163163615e-05 | J114: 0.72 | K114: 0.7518057291 | L114: 0.5334759902 | M114: =IF(J114>Cosines!O$22,0,(K114-L114)^2) -> 0.04766787489
A115: 0.72 | B115: 0.659384672 | C115: 0.6469628314 | D115: =IF(A115>Sines!O$22,0,(B115-C115)^2) -> 0.0001543021242 | J115: 0.78 | K115: 0.710913538 | L115: 0.4903836909 | M115: =IF(J115>Cosines!O$22,0,(K115-L115)^2) -> 0.04863341347
A116: 0.78 | B116: 0.7032794192 | C116: 0.6874955786 | D116: =IF(A116>Sines!O$22,0,(B116-C116)^2) -> 0.0002491296228 | J116: 0.84 | K116: 0.6674628258 | L116: 0.4482289458 | M116: =IF(J116>Cosines!O$22,0,(K116-L116)^2) -> 0.04806349414
A117: 0.84 | B117: 0.74464312 | C117: 0.7249442995 | D117: =IF(A117>Sines!O$22,0,(B117-C117)^2) -> 0.0003880435272 | J117: 0.9 | K117: 0.6216099683 | L117: 0.4075411512 | M117: =IF(J117>Cosines!O$22,0,(K117-L117)^2) -> 0.04582545843
A118: 0.9 | B118: 0.7833269096 | C118: 0.75912075 | D118: =IF(A118>Sines!O$22,0,(B118-C118)^2) -> 0.0005859381639 | J118: 0.96 | K118: 0.5735199861 | L118: 0.3689086672 | M118: =IF(J118>Cosines!O$22,0,(K118-L118)^2) -> 0.04186579179
A119: 0.96 | B119: 0.8191915683 | C119: 0.7898475725 | D119: =IF(A119>Sines!O$22,0,(B119-C119)^2) -> 0.0008610700907 | J119: 1.02 | K119: 0.5233659513 | L119: 0.3329813346 | M119: =IF(J119>Cosines!O$22,0,(K119-L119)^2) -> 0.03624630224
A120: 1.02 | B120: 0.8521080219 | C120: 0.8169590734 | D120: =IF(A120>Sines!O$22,0,(B120-C120)^2) -> 0.001235448587 | J120: 1.08 | K120: 0.4713283642 | L120: 0.30047295 | M120: =IF(J120>Cosines!O$22,0,(K120-L120)^2) -> 0.02919157256
A121: 1.08 | B121: 0.8819578069 | C121: 0.8403020006 | D121: =IF(A121>Sines!O$22,0,(B121-C121)^2) -> 0.001735206194 | J121: 1.14 | K121: 0.417594504 | L121: 0.2721637002 | M121: =IF(J121>Cosines!O$22,0,(K121-L121)^2) -> 0.02115011868
A122: 1.14 | B122: 0.9086334961 | C122: 0.8597363215 | D122: =IF(A122>Sines!O$22,0,(B122-C122)^2) -> 0.002390933683 | J122: 1.2 | K122: 0.3623577545 | L122: 0.2489025561 | M122: =IF(J122>Cosines!O$22,0,(K122-L122)^2) -> 0.01287208204
A123: 1.2 | B123: 0.932039086 | C123: 0.875136 | D123: =IF(A123>Sines!O$22,0,(B123-C123)^2) -> 0.003237961193 | J123: 1.26 | K123: 0.3058169084 | L123: 0.2316096248 | M123: =IF(J123>Cosines!O$22,0,(K123-L123)^2) -> 0.005506720933
A124: 1.26 | B124: 0.9520903416 | C124: 0.8863897745 | D124: =IF(A124>Sines!O$22,0,(B124-C124)^2) -> 0.004316564519 | J124: 1.32 | K124: 0.2481754517 | L124: 0.2212784614 | M124: =IF(J124>Cosines!O$22,0,(K124-L124)^2) -> 0.0007234480826
A125: 1.32 | B125: 0.9687151001 | C125: 0.8934019354 | D125: =IF(A125>Sines!O$22,0,(B125-C125)^2) -> 0.005672072786 | J125: 1.38 | K125: 0.1896408313 | L125: 0.2189783395 | M125: =IF(J125>Cosines!O$22,0,(K125-L125)^2) -> 0.0008606893898
A126: 1.38 | B126: 0.9818535304 | C126: 0.8960931026 | D126: =IF(A126>Sines!O$22,0,(B126-C126)^2) -> 0.007354850965 | J126: 1.44 | K126: 0.1304237087 | L126: 0.2258564809 | M126: =IF(J126>Cosines!O$22,0,(K126-L126)^2) -> 0.009107413993
A127: 1.44 | B127: 0.9914583482 | C127: 0.8944010035 | D127: =IF(A127>Sines!O$22,0,(B127-C127)^2) -> 0.009420128155 | J127: 1.5 | K127: 0.07073720167 | L127: 0.2431402439 | M127: =IF(J127>Cosines!O$22,0,(K127-L127)^2) -> 0.02972280897
A128: 1.5 | B128: 0.9974949866 | C128: 0.88828125 | D128: =IF(A128>Sines!O$22,0,(B128-C128)^2) -> 0.01192764026 | J128: 1.56 | K128: 0.01079611706 | L128: 0.2721392717 | M128: =IF(J128>Cosines!O$22,0,(K128-L128)^2) -> 0.06830024449
A129: 1.56 | B129: 0.9999417202 | C129: 0.8777081165 | D129: =IF(A129>Sines!O$22,0,(B129-C129)^2) -> 0.01494105389 | J129: 1.62 | K129: -0.04918382191 | L129: 0.3142475985 | M129: =IF(J129>Cosines!O$22,0,(K129-L129)^2) -> 0.1320823974
A130: 1.62 | B130: 0.9987897435 | C130: =0+H$3*A130+H$4*A130^2+H$5*A130^3+H$6*A130^4+H$7*A130^5+H$8*A130^6 -> 0.8626753174 | D130: =IF(A130>Sines!O$22,0,(B130-C130)^2) -> 0.018527137 | J130: 1.68 | K130: =COS(J130) -> -0.1089867522 | L130: =1+Q$3*J130+Q$4*J130^2+Q$5*J130^3+Q$6*J130^4+Q$7*J130^5+Q$8*J130^6 -> 0.3709457156 | M130: =IF(J130>Cosines!O$22,0,(K130-L130)^2) -> 0.2303351737
A131: 1.68 | B131: 0.9940432022 | C131: 0.8431967846 | D131: =IF(A131>Sines!O$22,0,(B131-C131)^2) -> 0.02275464169 | J131: 1.74 | K131: -0.1683974479 | L131: 0.4438025959 | M131: =IF(J131>Cosines!O$22,0,(K131-L131)^2) -> 0.3747888937
A132: 1.74 | B132: 0.9857191788 | C132: 0.8193074455 | D132: =IF(A132>Sines!O$22,0,(B132-C132)^2) -> 0.02769286499 | J132: 1.8 | K132: -0.2272020947 | L132: 0.534477678 | M132: =IF(J132>Cosines!O$22,0,(K132-L132)^2) -> 0.5801560762
A133: 1.8 | B133: 0.9738476309 | C133: 0.791064 | D133: =IF(A133>Sines!O$22,0,(B133-C133)^2) -> 0.03340985572 | J133: 1.86 | K133: -0.2851890592 | L133: 0.6447228091 | M133: =IF(J133>Cosines!O$22,0,(K133-L133)^2) -> 0.8647360829
A134: 1.86 | B134: 0.9584712831 | C134: 0.7585456985 | D134: =IF(A134>Sines!O$22,0,(B134-C134)^2) -> 0.03997023938 | J134: 1.92 | K134: -0.3421496512 | L134: 0.7763841465 | M134: =IF(J134>Cosines!O$22,0,(K134-L134)^2) -> 1.251117857
A135: 1.92 | B135: 0.9396454737 | C135: 0.7218551194 | D135: =IF(A135>Sines!O$22,0,(B135-C135)^2) -> 0.04743263844 | J135: =J134+12/200 -> 1.98 | K135: -0.3978788738 | L135: 0.931404019 | M135: =IF(J135>Cosines!O$22,0,(K135-L135)^2) -> 1.766993009
A136: =A135+12/200 -> 1.98 | B136: 0.9174379553 | C136: 0.6811189466 | D136: =IF(A136>Sines!O$22,0,(B136-C136)^2) -> 0.05584667385 | J136: 2.04 | K136: -0.4521761621 | L136: 1.111822747 | M136: =IF(J136>Cosines!O$22,0,(K136-L136)^2) -> 2.446092587
A137: 2.04 | B137: 0.891928651 | C137: 0.6364887475 | D137: =IF(A137>Sines!O$22,0,(B137-C137)^2) -> 0.06524954427 | J137: 2.1 | K137: -0.5048461046 | L137: 1.31978042 | M137: =IF(J137>Cosines!O$22,0,(K137-L137)^2) -> 3.329261952
A138: 2.1 | B138: 0.8632093666 | C138: 0.58814175 | D138: =IF(A138>Sines!O$22,0,(B138-C138)^2) -> 0.07566219373 | J138: 2.16 | K138: -0.5556991463 | L138: 1.557518636 | M138: =IF(J138>Cosines!O$22,0,(K138-L138)^2) -> 4.465689396
A139: 2.16 | B139: 0.8313834608 | C139: 0.5362816205 | D139: =IF(A139>Sines!O$22,0,(B139-C139)^2) -> 0.08708509615 | J139: 2.22 | K139: -0.6045522711 | L139: 1.827382201 | M139: =IF(J139>Cosines!O$22,0,(K139-L139)^2) -> 5.914305275
A140: 2.22 | B140: 0.7965654722 | C140: 0.4811392414 | D140: =IF(A140>Sines!O$22,0,(B140-C140)^2) -> 0.09949370712 | J140: 2.28 | K140: -0.6512296605 | L140: 2.131820778 | M140: =IF(J140>Cosines!O$22,0,(K140-L140)^2) -> 7.745369744
A141: 2.28 | B141: 0.7588807082 | C141: 0.4229734886 | D141: =IF(A141>Sines!O$22,0,(B141-C141)^2) -> 0.1128336601 | J141: 2.34 | K141: -0.6955633265 | L141: 2.47339051 | M141: =IF(J141>Cosines!O$22,0,(K141-L141)^2) -> 10.04226842
A142: 2.34 | B142: 0.7184647931 | C142: 0.3620720095 | D142: =IF(A142>Sines!O$22,0,(B142-C142)^2) -> 0.1270158162 | J142: 2.4 | K142: -0.7373937155 | L142: 2.85475559 | M142: =IF(J142>Cosines!O$22,0,(K142-L142)^2) -> 12.90353664
A143: 2.4 | B143: =SIN(A143) -> 0.6754631806 | C143: 0.298752 | D143: =IF(A143>Sines!O$22,0,(B143-C143)^2) -> 0.1419113136 | J143: 2.46 | K143: -0.7765702835 | L143: 3.278689794 | M143: =IF(J143>Cosines!O$22,0,(K143-L143)^2) -> 16.4451343
A144: 2.46 | B144: 0.63003063 | C144: 0.2333609825 | D144: =IF(A144>Sines!O$22,0,(B144-C144)^2) -> 0.1573468093 | J144: 2.52 | K144: -0.8129520371 | L144: 3.748077975 | M144: =IF(J144>Cosines!O$22,0,(K144-L144)^2) -> 20.80299477
A145: 2.52 | B145: 0.5823306495 | C145: 0.1662775834 | D145: =IF(A145>Sines!O$22,0,(B145-C145)^2) -> 0.1731001539 | J145: 2.58 | K145: -0.8464080412 | L145: 4.265917513 | M145: =IF(J145>Cosines!O$22,0,(K145-L145)^2) -> 26.13587257
A146: 2.58 | B146: 0.5325349076 | C146: 0.09791231064 | D146: =IF(A146>Sines!O$22,0,(B146-C146)^2) -> 0.1888968017 | J146: 2.64 | K146: -0.8768178904 | L146: 4.835319726 | M146: =IF(J146>Cosines!O$22,0,(K146-L146)^2) -> 32.62851615
A147: 2.64 | B147: 0.480822615 | C147: 0.02870833152 | D147: =IF(A147>Sines!O$22,0,(B147-C147)^2) -> 0.2044073253 | J147: 2.7 | K147: -0.904072142 | L147: 5.459511239 | M147: =IF(J147>Cosines!O$22,0,(K147-L147)^2) -> 40.49519345
A148: 2.7 | B148: 0.4273798802 | C148: -0.04085775 | D148: =IF(A148>Sines!O$22,0,(B148-C148)^2) -> 0.2192464784 | J148: 2.76 | K148: -0.9280727102 | L148: 6.141835313 | M148: =IF(J148>Cosines!O$22,0,(K148-L148)^2) -> 49.98359945
A149: 2.76 | B149: 0.3723990394 | C149: -0.1102751155 | D149: =IF(A149>Sines!O$22,0,(B149-C149)^2) -> 0.2329743399 | J149: 2.82 | K149: -0.9487332188 | L149: 6.88575313 | M149: =IF(J149>Cosines!O$22,0,(K149-L149)^2) -> 61.37917635
A150: 2.82 | B150: 0.3160779642 | C150: -0.1789979546 | D150: =IF(A150>Sines!O$22,0,(B150-C150)^2) -> 0.2451001654 | J150: 2.88 | K150: -0.9659793124 | L150: 7.694845044 | M150: =IF(J150>Cosines!O$22,0,(K150-L150)^2) -> 75.00987853
A151: 2.88 | B151: 0.2586193497 | C151: -0.2464446874 | D151: =IF(A151>Sines!O$22,0,(B151-C151)^2) -> 0.2550896815 | J151: 2.94 | K151: -0.9797489236 | L151: 8.572811782 | M151: =IF(J151>Cosines!O$22,0,(K151-L151)^2) -> 91.25141603
A152: 2.94 | B152: 0.2002299847 | C152: -0.3119971865 | D152: =IF(A152>Sines!O$22,0,(B152-C152)^2) -> 0.2623766749 | J152: 3 | K152: -0.9899924966 | L152: 9.52347561 | M152: =IF(J152>Cosines!O$22,0,(K152-L152)^2) -> 110.5330116
A153: 3 | B153: 0.1411200081 | C153: -0.375 | D153: =IF(A153>Sines!O$22,0,(B153-C153)^2) -> 0.2663798627 | J153: 3.06 | K153: -0.9966731657 | L153: 10.55078146 | M153: =IF(J153>Cosines!O$22,0,(K153-L153)^2) -> 133.3437083
A154: 3.06 | B154: 0.08150215176 | C154: -0.4347595735 | D154: =IF(A154>Sines!O$22,0,(B154-C154)^2) -> 0.266526169 | J154: 3.12 | K154: -0.9997668877 | L154: 11.658798 | M154: =IF(J154>Cosines!O$22,0,(K154-L154)^2) -> 0
A155: 3.12 | B155: 0.02159097573 | C155: -0.4905434726 | D155: =IF(A155>Sines!O$22,0,(B155-C155)^2) -> 0.2622816932 | J155: 3.18 | K155: -0.9992625285 | L155: 12.8517187 | M155: =IF(J155>Cosines!O$22,0,(K155-L155)^2) -> 0
A156: 3.18 | B156: -0.03839790451 | C156: -0.5415796054 | D156: =IF(A156>Sines!O$22,0,(B156-C156)^2) -> 0.2531918241 | J156: 3.24 | K156: -0.9951619033 | L156: 14.1338628 | M156: =IF(J156>Cosines!O$22,0,(K156-L156)^2) -> 0
A157: 3.24 | B157: -0.09824859375 | C157: -0.5870554445 | D157: =IF(A157>Sines!O$22,0,(B157-C157)^2) -> 0.2389321373 | J157: 3.3 | K157: -0.9874797699 | L157: 15.50967631 | M157: =IF(J157>Cosines!O$22,0,(K157-L157)^2) -> 0
A158: 3.3 | B158: -0.1577456941 | C158: -0.62611725 | D158: =IF(A158>Sines!O$22,0,(B158-C158)^2) -> 0.2193719143 | J158: 3.36 | K158: -0.9762437757 | L158: 16.98373288 | M158: =IF(J158>Cosines!O$22,0,(K158-L158)^2) -> 0
A159: 3.36 | B159: -0.2166750804 | C159: -0.6578692915 | D159: =IF(A159>Sines!O$22,0,(B159-C159)^2) -> 0.1946523319 | J159: 3.42 | K159: -0.9614943581 | L159: 18.56073473 | M159: =IF(J159>Cosines!O$22,0,(K159-L159)^2) -> 0
A160: 3.42 | B160: -0.2748246703 | C160: -0.6813730706 | D160: =IF(A160>Sines!O$22,0,(B160-C160)^2) -> 0 | J160: 3.48 | K160: -0.943284599 | L160: 20.24551343 | M160: =IF(J160>Cosines!O$22,0,(K160-L160)^2) -> 0
A161: 3.48 | B161: -0.3319851882 | C161: -0.6956465434 | D161: =IF(A161>Sines!O$22,0,(B161-C161)^2) -> 0 | J161: 3.54 | K161: -0.9216800341 | L161: 22.04303076 | M161: =IF(J161>Cosines!O$22,0,(K161-L161)^2) -> 0
A162: 3.54 | B162: -0.3879509179 | C162: -0.6996633425 | D162: =IF(A162>Sines!O$22,0,(B162-C162)^2) -> 0 | J162: 3.6 | K162: -0.8967584163 | L162: 23.9583794 | M162: =IF(J162>Cosines!O$22,0,(K162-L162)^2) -> 0
A163: 3.6 | B163: -0.4425204433 | C163: -0.692352 | D163: =IF(A163>Sines!O$22,0,(B163-C163)^2) -> 0 | J163: 3.66 | K163: -0.8686094366 | L163: 25.99678369 | M163: =IF(J163>Cosines!O$22,0,(K163-L163)^2) -> 0
A164: 3.66 | B164: -0.4954973729 | C164: -0.6725951695 | D164: =IF(A164>Sines!O$22,0,(B164-C164)^2) -> 0 | J164: 3.72 | K164: -0.837334401 | L164: 28.1636003 | M164: =IF(J164>Cosines!O$22,0,(K164-L164)^2) -> 0
A165: 3.72 | B165: -0.5466910471 | C165: -0.6392288486 | D165: =IF(A165>Sines!O$22,0,(B165-C165)^2) -> 0 | J165: 3.78 | K165: -0.8030458657 | L165: 30.46431883 | M165: =IF(J165>Cosines!O$22,0,(K165-L165)^2) -> 0
A166: 3.78 | B166: -0.5959172238 | C166: -0.5910416014 | D166: =IF(A166>Sines!O$22,0,(B166-C166)^2) -> 0 | J166: 3.84 | K166: -0.7658672324 | L166: 32.90456242 | M166: =IF(J166>Cosines!O$22,0,(K166-L166)^2) -> 0
A167: 3.84 | B167: -0.6429987421 | C167: -0.5267737805 | D167: =IF(A167>Sines!O$22,0,(B167-C167)^2) -> 0 | J167: =J166+12/200 -> 3.9 | K167: -0.7259323042 | L167: 35.49008832 | M167: =IF(J167>Cosines!O$22,0,(K167-L167)^2) -> 0
A168: =A167+12/200 -> 3.9 | B168: -0.6877661592 | C168: -0.44511675 | D168: =IF(A168>Sines!O$22,0,(B168-C168)^2) -> 0 | J168: 3.96 | K168: -0.6833848036 | L168: 38.22678837 | M168: =IF(J168>Cosines!O$22,0,(K168-L168)^2) -> 0
A169: 3.96 | B169: -0.7300583608 | C169: -0.3447121075 | D169: =IF(A169>Sines!O$22,0,(B169-C169)^2) -> 0 | J169: 4.02 | K169: -0.6383778556 | L169: 41.12068947 | M169: =IF(J169>Cosines!O$22,0,(K169-L169)^2) -> 0
A170: 4.02 | B170: -0.7697231408 | C170: -0.2241509066 | D170: =IF(A170>Sines!O$22,0,(B170-C170)^2) -> 0 | J170: 4.08 | K170: -0.5910734368 | L170: 44.17795402 | M170: =IF(J170>Cosines!O$22,0,(K170-L170)^2) -> 0
A171: 4.08 | B171: -0.8066177486 | C171: -0.08197287936 | D171: =IF(A171>Sines!O$22,0,(B171-C171)^2) -> 0 | J171: 4.14 | K171: -0.5416417918 | L171: 47.40488031 | M171: =IF(J171>Cosines!O$22,0,(K171-L171)^2) -> 0
A172: 4.14 | B172: -0.8406094036 | C172: 0.08333434152 | D172: =IF(A172>Sines!O$22,0,(B172-C172)^2) -> 0 | J172: 4.2 | K172: -0.4902608213 | L172: 50.80790285 | M172: =IF(J172>Cosines!O$22,0,(K172-L172)^2) -> 0
A173: 4.2 | B173: -0.8715757724 | C173: 0.273336 | D173: =IF(A173>Sines!O$22,0,(B173-C173)^2) -> 0 | J173: 4.26 | K173: -0.4371154413 | L173: 54.39359267 | M173: =IF(J173>Cosines!O$22,0,(K173-L173)^2) -> 0
A174: 4.26 | B174: -0.8994054097 | C174: 0.4896509945 | D174: =IF(A174>Sines!O$22,0,(B174-C174)^2) -> 0 | J174: 4.32 | K174: -0.3823969177 | L174: 58.16865762 | M174: =IF(J174>Cosines!O$22,0,(K174-L174)^2) -> 0
A175: 4.32 | B175: =SIN(A175) -> -0.9239981587 | C175: 0.7339526554 | D175: =IF(A175>Sines!O$22,0,(B175-C175)^2) -> 0 | J175: 4.38 | K175: -0.3263021782 | L175: 62.13994253 | M175: =IF(J175>Cosines!O$22,0,(K175-L175)^2) -> 0
A176: 4.38 | B176: -0.9452655122 | C176: 1.007969523 | D176: =IF(A176>Sines!O$22,0,(B176-C176)^2) -> 0 | J176: 4.44 | K176: -0.2690331031 | L176: 66.31442947 | M176: =IF(J176>Cosines!O$22,0,(K176-L176)^2) -> 0
A177: 4.44 | B177: -0.9631309306 | C177: 1.313486124 | D177: =IF(A177>Sines!O$22,0,(B177-C177)^2) -> 0 | J177: 4.5 | K177: -0.2107957994 | L177: 70.6992378 | M177: =IF(J177>Cosines!O$22,0,(K177-L177)^2) -> 0
A178: 4.5 | B178: -0.9775301177 | C178: 1.65234375 | D178: =IF(A178>Sines!O$22,0,(B178-C178)^2) -> 0 | J178: 4.56 | K178: -0.1517998585 | L178: 75.30162437 | M178: =IF(J178>Cosines!O$22,0,(K178-L178)^2) -> 0
A179: 4.56 | B179: -0.9884112519 | C179: 2.026441236 | D179: =IF(A179>Sines!O$22,0,(B179-C179)^2) -> 0 | J179: 4.62 | K179: -0.092257602 | L179: 80.12898348 | M179: =IF(J179>Cosines!O$22,0,(K179-L179)^2) -> 0
A180: 4.62 | B180: -0.9957351731 | C180: 2.437735737 | D180: =IF(A180>Sines!O$22,0,(B180-C180)^2) -> 0 | J180: 4.68 | K180: -0.03238331776 | L180: 85.18884697 | M180: =IF(J180>Cosines!O$22,0,(K180-L180)^2) -> 0
A181: 4.68 | B181: -0.9994755228 | C181: 2.888243505 | D181: =IF(A181>Sines!O$22,0,(B181-C181)^2) -> 0 | J181: 4.74 | K181: 0.02760751145 | L181: 90.48888415 | M181: =IF(J181>Cosines!O$22,0,(K181-L181)^2) -> 0
A182: 4.74 | B182: -0.99961884 | C182: 3.380040666 | D182: =IF(A182>Sines!O$22,0,(B182-C182)^2) -> 0 | J182: 4.8 | K182: 0.08749898344 | L182: 96.03690178 | M182: =IF(J182>Cosines!O$22,0,(K182-L182)^2) -> 0
A183: 4.8 | B183: -0.9961646088 | C183: 3.915264 | D183: =IF(A183>Sines!O$22,0,(B183-C183)^2) -> 0 | J183: 4.86 | K183: 0.1470755536 | L183: 101.8408439 | M183: =IF(J183>Cosines!O$22,0,(K183-L183)^2) -> 0
A184: 4.86 | B184: -0.9891252608 | C184: 4.496111718 | D184: =IF(A184>Sines!O$22,0,(B184-C184)^2) -> 0 | J184: 4.92 | K184: 0.2061228105 | L184: 107.9087918 | M184: =IF(J184>Cosines!O$22,0,(K184-L184)^2) -> 0
A185: 4.92 | B185: -0.9785261299 | C185: 5.124844239 | D185: =IF(A185>Sines!O$22,0,(B185-C185)^2) -> 0 | J185: 4.98 | K185: 0.264428248 | L185: 114.2489636 | M185: =IF(J185>Cosines!O$22,0,(K185-L185)^2) -> 0
A186: 4.98 | B186: -0.9644053617 | C186: 5.803784967 | D186: =IF(A186>Sines!O$22,0,(B186-C186)^2) -> 0 | J186: 5.04 | K186: 0.3217820292 | L186: 120.8697145 | M186: =IF(J186>Cosines!O$22,0,(K186-L186)^2) -> 0
A187: 5.04 | B187: -0.9468137756 | C187: 6.535321068 | D187: =IF(A187>Sines!O$22,0,(B187-C187)^2) -> 0 | J187: 5.1 | K187: 0.3779777427 | L187: 127.7795357 | M187: =IF(J187>Cosines!O$22,0,(K187-L187)^2) -> 0
A188: 5.1 | B188: -0.9258146823 | C188: 7.32190425 | D188: =IF(A188>Sines!O$22,0,(B188-C188)^2) -> 0 | J188: 5.16 | K188: 0.4328131445 | L188: 134.987055 | M188: =IF(J188>Cosines!O$22,0,(K188-L188)^2) -> 0
A189: 5.16 | B189: -0.901483656 | C189: 8.16605154 | D189: =IF(A189>Sines!O$22,0,(B189-C189)^2) -> 0 | J189: 5.22 | K189: 0.4860908863 | L189: 142.5010358 | M189: =IF(J189>Cosines!O$22,0,(K189-L189)^2) -> 0
A190: 5.22 | B190: -0.8739082619 | C190: 9.070346061 | D190: =IF(A190>Sines!O$22,0,(B190-C190)^2) -> 0 | J190: 5.28 | K190: 0.5376192258 | L190: 150.3303771 | M190: =IF(J190>Cosines!O$22,0,(K190-L190)^2) -> 0
A191: 5.28 | B191: -0.8431877419 | C191: 10.03743781 | D191: =IF(A191>Sines!O$22,0,(B191-C191)^2) -> 0 | J191: 5.34 | K191: 0.5872127167 | L191: 158.4841128 | M191: =IF(J191>Cosines!O$22,0,(K191-L191)^2) -> 0
A192: 5.34 | B192: -0.8094326564 | C192: 11.07004443 | D192: =IF(A192>Sines!O$22,0,(B192-C192)^2) -> 0 | J192: 5.4 | K192: 0.6346928759 | L192: 166.9714113 | M192: =IF(J192>Cosines!O$22,0,(K192-L192)^2) -> 0
A193: 5.4 | B193: -0.7727644876 | C193: 12.170952 | D193: =IF(A193>Sines!O$22,0,(B193-C193)^2) -> 0 | J193: 5.46 | K193: 0.6798888262 | L193: 175.801575 | M193: =IF(J193>Cosines!O$22,0,(K193-L193)^2) -> 0
A194: 5.46 | B194: -0.733315201 | C194: =0+H$3*A194+H$4*A194^2+H$5*A194^3+H$6*A194^4+H$7*A194^5+H$8*A194^6 -> 13.3430158 | D194: =IF(A194>Sines!O$22,0,(B194-C194)^2) -> 0 | J194: 5.52 | K194: =COS(J194) -> 0.7226379109 | L194: =1+Q$3*J194+Q$4*J194^2+Q$5*J194^3+Q$6*J194^4+Q$7*J194^5+Q$8*J194^6 -> 184.9840399 | M194: =IF(J194>Cosines!O$22,0,(K194-L194)^2) -> 0
A195: 5.52 | B195: -0.6912267716 | C195: 14.5891611 | D195: =IF(A195>Sines!O$22,0,(B195-C195)^2) -> 0 | J195: 5.58 | K195: 0.7627862794 | L195: 194.5283747 | M195: =IF(J195>Cosines!O$22,0,(K195-L195)^2) -> 0
A196: 5.58 | B196: -0.6466506723 | C196: 15.91238393 | D196: =IF(A196>Sines!O$22,0,(B196-C196)^2) -> 0 | J196: 5.64 | K196: 0.8001894411 | L196: 204.4442804 | M196: =IF(J196>Cosines!O$22,0,(K196-L196)^2) -> 0
A197: 5.64 | B197: -0.5997473288 | C197: 17.31575185 | D197: =IF(A197>Sines!O$22,0,(B197-C197)^2) -> 0 | J197: 5.7 | K197: 0.8347127848 | L197: 214.7415896 | M197: =IF(J197>Cosines!O$22,0,(K197-L197)^2) -> 0
A198: 5.7 | B198: -0.5506855426 | C198: 18.80240475 | D198: =IF(A198>Sines!O$22,0,(B198-C198)^2) -> 0 | J198: 5.76 | K198: 0.866232064 | L198: 225.4302655 | M198: =IF(J198>Cosines!O$22,0,(K198-L198)^2) -> 0
A199: 5.76 | B199: -0.4996418831 | C199: 20.3755556 | D199: =IF(A199>Sines!O$22,0,(B199-C199)^2) -> 0 | J199: 5.82 | K199: 0.8946338431 | L199: 236.5204016 | M199: =IF(J199>Cosines!O$22,0,(K199-L199)^2) -> 0
A200: 5.82 | B200: -0.4468000524 | C200: 22.03849127 | D200: =IF(A200>Sines!O$22,0,(B200-C200)^2) -> 0 | J200: 5.88 | K200: 0.9198159064 | L200: 248.0222206 | M200: =IF(J200>Cosines!O$22,0,(K200-L200)^2) -> 0
... 3 more rows

Sheet Sheet4
